fUSD/lending_fUSD_20240915
["ID","MTS","AMOUNT","RATE_DAILY","PERIOD"]
[338190029,1726379460821,-500.0,0.00013271,2]
[338190030,1726379460831,-500.0,0.00013271,2]
[338190031,1726379460841,-2169.43,0.00013271,2]
[338190032,1726379460850,-500.0,0.00013271,2]
[338190033,1726379460859,-500.0,0.00013271,2]
[338190034,1726379460869,-1949.18,0.00013271,2]
[338190035,1726379460878,-586.00074887,0.00013271,2]
[338190036,1726379460887,-500.0,0.00013271,2]
[338190037,1726379460897,-500.0,0.00013271,2]
[338190038,1726379460906,-3063.31,0.00013271,2]
[338190039,1726379460916,-508.31,0.00013271,2]
[338190040,1726379460925,-500.0,0.00013271,2]
[338190041,1726379460934,-2028.43,0.00013271,2]
[338190042,1726379460944,-2498.75,0.00013271,2]
[338190043,1726379460953,-500.0,0.00013271,2]
[338190044,1726379460963,-500.0,0.00013271,2]
[338190045,1726379460972,-1326.11,0.00013271,2]
[338190046,1726379460981,-500.0,0.00013271,2]
[338190047,1726379460991,-942.93,0.00013271,2]
[338190048,1726379461001,-500.0,0.00013271,2]
[338190049,1726379461011,-500.0,0.00013271,2]
[338190050,1726379461020,-583.35,0.00013271,2]
[338190051,1726379461030,-1241.64,0.00013271,2]
[338190052,1726379461039,-500.0,0.00013271,2]
[338190053,1726379461049,-1528.09,0.00013271,2]
[338190054,1726379461058,-961.94,0.00013271,2]
[338190055,1726379461067,-1528.09,0.00013271,2]
[338190056,1726379461077,-500.0,0.00013271,2]
[338190057,1726379461087,-500.0,0.00013271,2]
[338190058,1726379461096,-500.0,0.00013271,2]
[338190059,1726379461105,-500.0,0.00013271,2]
[338190060,1726379461115,-500.0,0.00013271,2]
[338190061,1726379461124,-1034.28,0.00013271,2]
[338190062,1726379461133,-500.0,0.00013271,2]
[338190063,1726379461143,-500.0,0.00013271,2]
[338190064,1726379461152,-858.85,0.00013271,2]
[338190065,1726379461162,-500.0,0.00013271,2]
[338190066,1726379461171,-500.0,0.00013271,2]
[338190067,1726379461181,-3688.24,0.00013271,2]
[338190068,1726379461190,-500.0,0.00013271,2]
[338190069,1726379461200,-4492.53,0.00013271,2]
[338190070,1726379461210,-500.0,0.00013271,2]
[338190071,1726379461222,-500.0,0.00013271,2]
[338190072,1726379461231,-500.0,0.00013271,2]
[338190073,1726379461241,-515.87,0.00013271,2]
[338190074,1726379461250,-500.0,0.00013271,2]
[338190075,1726379461259,-1151.22,0.00013271,2]
[338190076,1726379461268,-500.0,0.00013271,2]
[338190077,1726379461278,-2499.97,0.00013271,2]
[338190078,1726379461287,-1823.65,0.00013271,2]
[338190079,1726379461297,-1996.27,0.00013271,2]
[338190080,1726379461306,-500.0,0.00013271,2]
[338190081,1726379461315,-500.0,0.00013271,2]
[338190082,1726379461324,-1197.3,0.00013271,2]
[338190083,1726379461334,-500.0,0.00013271,2]
[338190084,1726379461344,-778.72,0.00013271,2]
[338190085,1726379461354,-500.0,0.00013271,2]
[338190086,1726379461364,-500.0,0.00013271,2]
[338190087,1726379461374,-500.0,0.00013271,2]
[338190088,1726379461383,-634.28,0.00013271,2]
[338190089,1726379461392,-500.0,0.00013271,2]
[338190090,1726379461402,-632.5,0.00013271,2]
[338190091,1726379461412,-500.0,0.00013271,2]
[338190092,1726379461422,-1585.18,0.00013271,2]
[338190093,1726379461431,-500.0,0.00013271,2]
[338190094,1726379461440,-500.0,0.00013271,2]
[338190095,1726379461449,-500.0,0.00013271,2]
[338190096,1726379461459,-1496.8,0.00013271,2]
[338190097,1726379461477,-500.0,0.00013271,2]
[338190098,1726379461486,-500.0,0.00013271,2]
[338190099,1726379461495,-500.0,0.00013271,2]
[338190100,1726379461504,-368.20046702,0.00013271,2]
[338190101,1726379461514,-1128.68,0.00013271,2]
[338190102,1726379461523,-833.59,0.00013271,2]
[338190103,1726379461532,-500.0,0.00013271,2]
[338190104,1726379461542,-500.0,0.00013271,2]
[338190105,1726379461551,-1024.41,0.00013271,2]
[338190106,1726379461561,-500.0,0.00013271,2]
[338190107,1726379461570,-357.23238073,0.00013271,2]
[338190108,1726379461579,-500.0,0.00013271,2]
[338190109,1726379461588,-1123.0,0.00013271,2]
[338190110,1726379461597,-935.3,0.00013271,2]
[338190111,1726379461606,-500.0,0.00013271,2]
[338190112,1726379461616,-500.0,0.00013271,2]
[338190113,1726379461625,-500.0,0.00013271,2]
[338190114,1726379461806,-1399.42,0.00013271,2]
[338190115,1726379461816,-500.0,0.00013271,2]
[338190116,1726379461825,-500.0,0.00013271,2]
[338190117,1726379461834,-830.13,0.00013271,2]
[338190118,1726379461844,-500.0,0.00013271,2]
[338190119,1726379461854,-500.0,0.00013271,2]
[338190120,1726379461863,-500.0,0.00013271,2]
[338190121,1726379461872,-1527.63,0.00013271,2]
[338190122,1726379461881,-500.0,0.00013271,2]
[338190123,1726379461891,-564.7,0.00013271,2]
[338190124,1726379461900,-500.0,0.00013271,2]
[338190125,1726379461909,-500.0,0.00013271,2]
[338190126,1726379461918,-500.0,0.00013271,2]
[338190127,1726379461931,-500.0,0.00013271,2]
[338190128,1726379461942,-1292.59,0.00013271,2]
[338190129,1726379461953,-1704.82,0.00013271,2]
[338190130,1726379461964,-4406.1,0.00013271,2]
[338190131,1726379461973,-2027.17,0.00013271,2]
[338190132,1726379461982,-13386.03,0.00013271,2]
[338190133,1726379461991,-300.0,0.00013271,2]
[338190134,1726379462001,-1405.68,0.00013271,2]
[338190135,1726379462010,-3018.18,0.00013271,2]
[338190136,1726379462019,-151.0,0.00013271,2]
[338190137,1726379462029,-1689.84,0.00013271,2]
[338190138,1726379462038,-500.0,0.00013271,2]
[338190139,1726379462047,-500.0,0.00013271,2]
[338190140,1726379462056,-500.0,0.00013271,2]
[338190141,1726379462066,-500.0,0.00013271,2]
[338190142,1726379462075,-500.0,0.00013271,2]
[338190143,1726379462084,-2756.82,0.00013271,2]
[338190144,1726379462093,-4035.23,0.00013271,2]
[338190145,1726379462102,-1051.67,0.00013271,2]
[338190146,1726379462111,-831.708207,0.00013271,2]
[338190147,1726379462120,-1228.79,0.00013271,2]
[338190148,1726379462130,-769.136463,0.00013271,2]
[338190149,1726379462139,-831.708207,0.00013271,2]
[338190150,1726379462148,-1075.22,0.00013271,2]
[338190151,1726379462158,-769.136463,0.00013271,2]
[338190152,1726379462167,-2123.3,0.00013271,2]
[338190153,1726379462177,-1816.79,0.00013271,2]
[338190154,1726379462187,-587.24,0.00013271,2]
[338190155,1726379462196,-500.0,0.00013271,2]
[338190156,1726379462205,-1244.24,0.00013271,2]
[338190157,1726379462215,-547.11,0.00013271,2]
[338190158,1726379462225,-972.64,0.00013272,2]
[338190159,1726379462234,-972.64,0.00013272,2]
[338190160,1726379462244,-605.72,0.00013272,2]
[338190161,1726379462253,-408.76603977,0.00013272,2]
[338190162,1726379462263,-1655.93,0.00013272,2]
[338190163,1726379462272,-500.0,0.00013272,2]
[338190164,1726379462281,-500.0,0.00013272,2]
[338190165,1726379462291,-1101.78,0.00013272,2]
[338190166,1726379462300,-500.0,0.00013272,2]
[338190167,1726379462309,-1265.26,0.00013272,2]
[338190168,1726379462319,-500.0,0.00013272,2]
[338190169,1726379462328,-1111.49,0.00013272,2]
[338190170,1726379462338,-500.0,0.00013272,2]
[338190171,1726379462347,-802.34,0.00013272,2]
[338190172,1726379462356,-500.0,0.00013272,2]
[338190173,1726379462365,-520.79,0.00013272,2]
[338190174,1726379462375,-2755.64,0.00013272,2]
[338190175,1726379462385,-500.0,0.00013272,2]
[338190176,1726379462396,-500.0,0.00013272,2]
[338190177,1726379462405,-500.0,0.00013272,2]
[338190178,1726379462415,-1855.35,0.00013272,2]
[338190179,1726379462424,-2295.94,0.00013272,2]
[338190180,1726379462435,-500.0,0.00013272,2]
[338190181,1726379462444,-500.0,0.00013272,2]
[338190182,1726379462454,-500.0,0.00013272,2]
[338190183,1726379462463,-2475.71,0.00013272,2]
[338190184,1726379462475,-2954.81,0.00013272,2]
[338190185,1726379462484,-500.03,0.00013272,2]
[338190186,1726379462494,-1732.76,0.00013272,2]
[338190187,1726379462503,-2394.64,0.00013272,2]
[338190188,1726379462513,-644.7,0.00013272,2]
[338190189,1726379462523,-500.0,0.00013272,2]
[338190190,1726379462533,-500.0,0.00013272,2]
[338190191,1726379462543,-2300.83,0.00013272,2]
[338190192,1726379462553,-500.0,0.00013272,2]
[338190193,1726379462563,-737.5,0.00013272,2]
[338190194,1726379462572,-500.0,0.00013272,2]
[338190195,1726379462582,-1155.97,0.00013272,2]
[338190196,1726379462591,-843.19,0.00013272,2]
[338190197,1726379462600,-500.0,0.00013272,2]
[338190198,1726379462610,-803.85,0.00013272,2]
[338190199,1726379462620,-2070.52,0.00013272,2]
[338190200,1726379462629,-1009.26,0.00013272,2]
[338190201,1726379462639,-500.0,0.00013272,2]
[338190202,1726379462648,-570.47,0.00013272,2]
[338190203,1726379462658,-500.0,0.00013272,2]
[338190204,1726379462667,-835.81,0.00013272,2]
[338190205,1726379462677,-500.0,0.00013272,2]
[338190206,1726379462687,-1119.43,0.00013272,2]
[338190207,1726379462696,-501.24,0.00013272,2]
[338190208,1726379462705,-667.25,0.00013272,2]
[338190209,1726379462715,-627.85,0.00013272,2]
[338190210,1726379462724,-1456.95,0.00013272,2]
[338190211,1726379462734,-1368.2,0.00013272,2]
[338190212,1726379462744,-500.0,0.00013272,2]
[338190213,1726379462754,-719.14,0.00013272,2]
[338190214,1726379462763,-500.0,0.00013272,2]
[338190215,1726379462773,-500.0,0.00013272,2]
[338190216,1726379462783,-500.0,0.00013272,2]
[338190217,1726379462792,-607.89,0.00013272,2]
[338190218,1726379462801,-500.0,0.00013272,2]
[338190219,1726379462811,-948.85,0.00013272,2]
[338190220,1726379462820,-571.25429325,0.00013272,2]
[338190221,1726379462829,-500.0,0.00013272,2]
[338190222,1726379462839,-500.0,0.00013272,2]
[338190223,1726379462849,-500.0,0.00013272,2]
[338190224,1726379462859,-500.0,0.00013272,2]
[338190225,1726379462868,-1240.11,0.00013272,2]
[338190226,1726379462877,-602.38995418,0.00013272,2]
[338190227,1726379462887,-500.0,0.00013272,2]
[338190228,1726379462896,-500.0,0.00013272,2]
[338190229,1726379462907,-3322.39,0.00013272,2]
[338190230,1726379462916,-500.0,0.00013272,2]
[338190231,1726379462926,-2963.38,0.00013272,2]
[338190232,1726379462937,-3181.65,0.00013272,2]
[338190233,1726379462948,-1960.18,0.00013272,2]
[338190234,1726379462960,-2515.62,0.00013272,2]
[338190235,1726379462971,-500.0,0.00013272,2]
[338190236,1726379462981,-1080.59,0.00013272,2]
[338190237,1726379462990,-1988.27,0.00013272,2]
[338190238,1726379463000,-500.0,0.00013272,2]
[338190239,1726379463009,-500.0,0.00013272,2]
[338190240,1726379463019,-500.0,0.00013272,2]
[338190241,1726379463028,-500.0,0.00013272,2]
[338190242,1726379463037,-500.0,0.00013272,2]
[338190243,1726379463047,-558.26,0.00013272,2]
[338190244,1726379463057,-558.26,0.00013272,2]
[338190245,1726379463068,-910.11,0.00013272,2]
[338190246,1726379463078,-2473.08377334,0.00013272,2]
[338190247,1726379463088,-1292.56,0.00013272,2]
[338190248,1726379463098,-500.0,0.00013272,2]
[338190249,1726379463108,-500.0,0.00013272,2]
[338190250,1726379463118,-882.09,0.00013272,2]
[338190251,1726379463127,-500.0,0.00013272,2]
[338190252,1726379463137,-500.0,0.00013272,2]
[338190253,1726379463147,-1105.82,0.00013272,2]
[338190254,1726379463157,-1863.31,0.00013272,2]
[338190255,1726379463166,-960.57,0.00013272,2]
[338190256,1726379463176,-500.0,0.00013272,2]
[338190257,1726379463186,-500.0,0.00013272,2]
[338190258,1726379463195,-1276.48,0.00013272,2]
[338190259,1726379463205,-500.0,0.00013272,2]
[338190260,1726379463216,-151.0,0.00013272,2]
[338190261,1726379463226,-500.0,0.00013272,2]
[338190262,1726379463236,-151.0,0.00013272,2]
[338190263,1726379463246,-500.0,0.00013272,2]
[338190264,1726379463255,-500.0,0.00013272,2]
[338190265,1726379463265,-508.31,0.00013272,2]
[338190266,1726379463274,-508.31,0.00013272,2]
[338190267,1726379463284,-508.31,0.00013272,2]
[338190268,1726379463293,-500.0,0.00013272,2]
[338190269,1726379463304,-500.0,0.00013272,2]
[338190270,1726379463313,-500.0,0.00013272,2]
[338190271,1726379463323,-2452.79,0.00013272,2]
[338190272,1726379463332,-500.0,0.00013272,2]
[338190273,1726379463342,-500.0,0.00013272,2]
[338190274,1726379463352,-1528.09,0.00013272,2]
[338190275,1726379463361,-1528.09,0.00013272,2]
[338190276,1726379463371,-500.0,0.00013272,2]
[338190277,1726379463380,-500.0,0.00013272,2]
[338190278,1726379463390,-912.85,0.00013272,2]
[338190279,1726379463399,-500.0,0.00013272,2]
[338190280,1726379463409,-151.0,0.00013272,2]
[338190281,1726379463418,-151.0,0.00013272,2]
[338190282,1726379463427,-500.0,0.00013272,2]
[338190283,1726379463436,-1444.13,0.00013272,2]
[338190284,1726379463446,-500.0,0.00013272,2]
[338190285,1726379463456,-500.0,0.00013272,2]
[338190286,1726379463465,-1255.56,0.00013272,2]
[338190287,1726379463475,-1091.86,0.00013272,2]
[338190288,1726379463484,-568.16,0.00013272,2]
[338190289,1726379463494,-861.93,0.00013272,2]
[338190290,1726379463504,-787.78,0.00013272,2]
[338190291,1726379463513,-500.08,0.00013272,2]
[338190292,1726379463522,-500.0,0.00013272,2]
[338190293,1726379463532,-589.2,0.00013272,2]
[338190294,1726379463541,-600.13,0.00013272,2]
[338190295,1726379463551,-1119.29,0.00013272,2]
[338190296,1726379463560,-500.0,0.00013272,2]
[338190297,1726379463570,-500.0,0.00013272,2]
[338190298,1726379463579,-500.0,0.00013272,2]
[338190299,1726379463589,-500.0,0.00013272,2]
[338190300,1726379463599,-500.0,0.00013272,2]
[338190301,1726379463609,-290.213275,0.00013272,2]
[338190302,1726379463619,-500.0,0.00013272,2]
[338190303,1726379463628,-1316.14,0.00013272,2]
[338190304,1726379463638,-500.0,0.00013272,2]
[338190305,1726379463648,-842.45,0.00013272,2]
[338190306,1726379463657,-2993.12,0.00013272,2]
[338190307,1726379463667,-500.0,0.00013272,2]
[338190308,1726379463677,-500.0,0.00013272,2]
[338190309,1726379463686,-1056.61,0.00013272,2]
[338190310,1726379463696,-151.0,0.00013272,2]
[338190311,1726379463705,-538.51,0.00013272,2]
[338190312,1726379463715,-500.0,0.00013272,2]
[338190313,1726379463725,-1772.27,0.00013272,2]
[338190314,1726379463734,-500.0,0.00013272,2]
[338190315,1726379463744,-587.06,0.00013272,2]
[338190316,1726379463753,-1072.85,0.00013272,2]
[338190317,1726379463763,-500.0,0.00013272,2]
[338190318,1726379463772,-500.0,0.00013272,2]
[338190319,1726379463782,-861.1,0.00013272,2]
[338190320,1726379463791,-793.62,0.00013272,2]
[338190321,1726379463800,-500.0,0.00013272,2]
[338190322,1726379463810,-500.0,0.00013272,2]
[338190323,1726379463820,-500.0,0.00013272,2]
[338190324,1726379463829,-500.0,0.00013272,2]
[338190325,1726379463838,-500.0,0.00013272,2]
[338190326,1726379463848,-500.0,0.00013272,2]
[338190327,1726379463857,-2477.99,0.00013272,2]
[338190328,1726379463866,-500.0,0.00013272,2]
[338190329,1726379463875,-500.0,0.00013272,2]
[338190330,1726379463885,-500.0,0.00013272,2]
[338190331,1726379463894,-595.10635363,0.00013272,2]
[338190332,1726379463903,-500.0,0.00013272,2]
[338190333,1726379463912,-2153.02,0.00013272,2]
[338190334,1726379463921,-581.67116054,0.00013272,2]
[338190335,1726379463931,-2367.66,0.00013272,2]
[338190336,1726379463941,-500.0,0.00013272,2]
[338190337,1726379463950,-288.11557392,0.00013272,2]
[338190338,1726379463959,-1558.06,0.00013272,2]
[338190339,1726379463969,-1076.47,0.00013272,2]
[338190340,1726379463978,-845.17,0.00013272,2]
[338190341,1726379463987,-500.0,0.00013272,2]
[338190342,1726379463996,-500.0,0.00013272,2]
[338190343,1726379464005,-2463.52,0.00013272,2]
[338190344,1726379464014,-506.16,0.00013272,2]
[338190345,1726379464023,-500.0,0.00013272,2]
[338190346,1726379464032,-909.69,0.00013272,2]
[338190347,1726379464042,-500.0,0.00013272,2]
[338190348,1726379464052,-500.0,0.00013272,2]
[338190349,1726379464062,-1428.8,0.00013272,2]
[338190350,1726379464071,-500.0,0.00013272,2]
[338190351,1726379464080,-500.0,0.00013272,2]
[338190352,1726379464090,-1111.07,0.00013272,2]
[338190353,1726379464099,-500.0,0.00013272,2]
[338190354,1726379464109,-466.35527666,0.00013272,2]
[338190355,1726379464118,-500.0,0.00013272,2]
[338190356,1726379464128,-500.0,0.00013272,2]
[338190357,1726379464310,-500.0,0.00013272,2]
[338190358,1726379464320,-5000.0,0.00013272,2]
[338190359,1726379464329,-2542.72,0.00013272,2]
[338190360,1726379464338,-1309.87,0.00013272,2]
[338190361,1726379464347,-500.0,0.00013272,2]
[338190362,1726379464357,-500.0,0.00013272,2]
[338190363,1726379464366,-1918.26,0.00013272,2]
[338190364,1726379464375,-500.0,0.00013272,2]
[338190365,1726379464385,-604.83,0.00013272,2]
[338190366,1726379464394,-500.0,0.00013273,2]
[338190367,1726379464404,-501.00165924,0.00013273,2]
[338190368,1726379464413,-1170.24,0.00013273,2]
[338190369,1726379464423,-1767.44,0.00013273,2]
[338190370,1726379464433,-500.34,0.00013273,2]
[338190371,1726379464442,-500.0,0.00013273,2]
[338190372,1726379464452,-500.0,0.00013273,2]
[338190373,1726379464462,-803.82,0.00013273,2]
[338190374,1726379464472,-500.0,0.00013273,2]
[338190375,1726379464482,-1023.03,0.00013273,2]
[338190376,1726379464491,-761.24,0.00013273,2]
[338190377,1726379464500,-771.19,0.00013273,2]
[338190378,1726379464509,-1843.46,0.00013273,2]
[338190379,1726379464519,-2134.22,0.00013273,2]
[338190380,1726379464528,-151.0,0.00013273,2]
[338190381,1726379464537,-1500.0,0.00013273,2]
[338190382,1726379464546,-1500.0,0.00013274,2]
[338190383,1726379464556,-1500.0,0.00013274,2]
[338190384,1726379464565,-150.0,0.00013275,2]
[338190385,1726379464574,-150.0,0.00013275,2]
[338190386,1726379464583,-150.0,0.00013276,2]
[338190387,1726379464593,-150.0,0.00013276,2]
[338190388,1726379464602,-150.0,0.00013279,2]
[338190389,1726379464612,-150.0,0.00013281,2]
[338190390,1726379464622,-1500.0,0.00013286,2]
[338190391,1726379464631,-150.0,0.00013288,2]
[338190392,1726379464641,-150.0,0.00013288,2]
[338190393,1726379464651,-1500.0,0.00013289,2]
[338190394,1726379464660,-150.0,0.00013296,2]
[338190395,1726379464670,-357.78,0.000133,2]
[338190396,1726379464679,-357.78,0.000133,2]
[338190397,1726379464689,-250.0,0.000133,2]
[338190398,1726379464698,-250.0,0.000133,2]
[338190399,1726379464708,-250.0,0.000133,2]
[338190400,1726379464719,-250.0,0.000133,2]
[338190401,1726379464737,-250.0,0.000133,2]
[338190402,1726379464747,-250.0,0.000133,2]
[338190403,1726379464756,-250.0,0.000133,2]
[338190404,1726379464765,-250.0,0.000133,2]
[338190405,1726379464775,-250.0,0.000133,2]
[338190406,1726379464784,-250.0,0.000133,2]
[338190407,1726379464793,-250.0,0.000133,2]
[338190408,1726379464803,-250.0,0.000133,2]
[338190409,1726379464812,-250.0,0.000133,2]
[338190410,1726379464822,-250.0,0.000133,2]
[338190411,1726379464831,-479.1,0.000133,2]
[338190412,1726379464840,-150.0,0.00013302,2]
[338190413,1726379464849,-150.0,0.00013303,2]
[338190414,1726379464859,-1500.0,0.00013303,2]
[338190415,1726379464868,-150.0,0.00013305,2]
[338190416,1726379464877,-150.0,0.00013306,2]
[338190417,1726379464887,-150.0,0.00013308,2]
[338190418,1726379464896,-150.0,0.00013308,2]
[338190419,1726379464905,-150.0,0.00013309,2]
[338190420,1726379464915,-150.0,0.00013313,2]
[338190421,1726379464925,-150.0,0.00013314,2]
[338190422,1726379464936,-153.63575951,0.00013317,2]
[338190423,1726379464946,-150.0,0.00013317,2]
[338190424,1726379464956,-1500.0,0.00013322,2]
[338190425,1726379464971,-150.0,0.00013327,2]
[338190426,1726379464980,-150.0,0.00013328,2]
[338190427,1726379464989,-150.0,0.0001333,2]
[338190428,1726379464998,-150.0,0.00013331,2]
[338190429,1726379465007,-150.0,0.00013333,2]
[338190430,1726379465016,-150.0,0.00013336,2]
[338190431,1726379465025,-1500.0,0.00013338,2]
[338190432,1726379465035,-150.0,0.0001334,2]
[338190433,1726379465044,-33262.06877901,0.00013341,2]
[338190434,1726379465075,-1739.31666449,0.00013341,2]
[338190435,1726379465084,-500.0,0.00013343,2]
[338190436,1726379465094,-500.0,0.00013343,2]
[338190437,1726379465106,-150.0,0.00013343,2]
[338190438,1726379465117,-151.690936,0.00013344,2]
[338190439,1726379465128,-43.00932923,0.00013344,2]
[338190440,1726379465140,-140.56963677,0.00013344,2]
[338190441,1726379465150,-1500.0,0.00013345,2]
[338190442,1726379465160,-152.82264889,0.00013345,2]
[338190443,1726379465170,-1500.0,0.00013348,2]
[338190444,1726379465179,-201.0,0.0001335,2]
[338190445,1726379465188,-150.0,0.00013356,2]
[338190446,1726379465198,-150.0,0.00013356,2]
[338190447,1726379465207,-50.4036593,0.00013358,2]
[338190448,1726379465220,-99.5963407,0.00013358,2]
[338190449,1726379465229,-150.0,0.00013362,2]
[338190450,1726379465239,-540.84846991,0.00013365,2]
[338190451,1726379465248,-93.72163603,0.00013365,2]
[338190452,1726379466731,-56.27836397,0.00013365,2]
[338190453,1726379466761,-150.0,0.00013366,2]
[338190454,1726379466771,-150.0,0.00013368,2]
[338190455,1726379466780,-150.0,0.00013368,2]
[338190456,1726379466790,-357.78,0.0001337,2]
[338190457,1726379466799,-357.78,0.0001337,2]
[338190458,1726379466808,-1500.0,0.0001337,2]
[338190459,1726379466818,-150.0,0.0001337,2]
[338190460,1726379466827,-150.0,0.00013374,2]
[338190461,1726379466836,-150.0,0.00013374,2]
[338190462,1726379466845,-150.0,0.00013374,2]
[338190463,1726379466854,-150.0,0.00013375,2]
[338190464,1726379466864,-150.0,0.00013376,2]
[338190465,1726379466874,-288.41055394,0.00013378,2]
[338190466,1726379466883,-1470.23723063,0.00013385,2]
[338190467,1726379466900,-500.0,0.00012995,2]
[338190468,1726379466910,-29.76276937,0.00013385,2]
[338190469,1726379466919,-96.27219963,0.00013388,2]
[338190470,1726379466931,-53.72780037,0.00013388,2]
[338190471,1726379466940,-150.0,0.00013389,2]
[338190472,1726379466949,-150.0,0.0001339,2]
[338190473,1726379466958,-150.0,0.00013394,2]
[338190474,1726379466967,-150.0,0.00013395,2]
[338190475,1726379466976,-150.0,0.00013396,2]
[338190476,1726379466985,-150.0,0.00013397,2]
[338190477,1726379466994,-150.0,0.00013397,2]
[338190478,1726379467003,-122.20867493,0.00013397,2]
[338190479,1726379467014,-27.79132507,0.00013397,2]
[338190480,1726379467023,-150.098,0.00013399,2]
[338190481,1726379467032,-150.0,0.00013399,2]
[338190482,1726379467042,-150.0,0.00013399,2]
[338190483,1726379467052,-150.919,0.00013399,2]
[338190484,1726379467061,-150.302,0.00013399,2]
[338190485,1726379467071,-150.0,0.00013399,2]
[338190486,1726379467080,-150.369,0.00013399,2]
[338190487,1726379467090,-150.265,0.00013399,2]
[338190488,1726379467099,-150.0,0.00013399,2]
[338190489,1726379467109,-168.59875095,0.000134,2]
[338190490,1726379467121,-276.93124905,0.000134,2]
[338190491,1726379467130,-518.04948732,0.000134,2]
[338190492,1726379467141,-377.63072068,0.000134,2]
[338190493,1726379467153,-67.249792,0.000134,2]
[338190494,1726379467162,-157.16,0.000134,2]
[338190495,1726379467171,-151.21,0.000134,2]
[338190496,1726379467180,-155.67,0.000134,2]
[338190497,1726379467189,-117.730208,0.000134,2]
[338190498,1726379467216,-134.949792,0.000134,2]
[338190499,1726379467225,-150.34,0.000134,2]
[338190500,1726379467234,-290.87,0.000134,2]
[338190501,1726379467243,-7.70305983,0.000134,2]
[338190502,1726379467255,-745.20694017,0.000134,2]
[338190503,1726379467264,-151.22,0.000134,2]
[338190504,1726379467274,-150.14,0.000134,2]
[338190505,1726379467283,-752.91,0.000134,2]
[338190506,1726379467292,-362.78,0.000134,2]
[338190507,1726379467301,-150.0,0.000134,2]
[338190508,1726379467310,-150.0,0.000134,2]
[338190509,1726379467319,-150.0,0.000134,2]
[338190510,1726379467329,-752.91,0.000134,2]
[338190511,1726379467338,-150.0,0.000134,2]
[338190512,1726379467348,-150.0,0.000134,2]
[338190513,1726379467357,-150.0,0.000134,2]
[338190514,1726379467366,-150.0,0.000134,2]
[338190515,1726379467375,-357.78,0.000134,2]
[338190516,1726379467386,-427.89,0.000134,2]
[338190517,1726379467395,-752.91,0.000134,2]
[338190518,1726379467404,-150.0,0.000134,2]
[338190519,1726379467414,-150.0,0.000134,2]
[338190520,1726379467423,-427.89,0.000134,2]
[338190521,1726379467432,-752.91,0.000134,2]
[338190522,1726379467442,-150.0,0.000134,2]
[338190523,1726379467451,-150.0,0.000134,2]
[338190524,1726379467461,-150.0,0.000134,2]
[338190525,1726379467471,-150.0,0.000134,2]
[338190526,1726379467481,-427.89,0.000134,2]
[338190527,1726379467490,-150.0,0.000134,2]
[338190528,1726379467500,-181.9,0.000134,2]